fUSD/lending_fUSD_20250505
["ID","MTS","AMOUNT","RATE_DAILY","PERIOD"]
[360022502,1746484242083,-790.83,0.00019999,2]
[360022503,1746484242092,-790.83,0.00019999,2]
[360022504,1746484242101,-790.83,0.00019999,2]
[360022505,1746484242110,-450.0,0.00019999,2]
[360022506,1746484242120,-790.83,0.00019999,2]
[360022507,1746484242129,-438.96,0.00019999,2]
[360022508,1746484242138,-790.83,0.00019999,2]
[360022509,1746484242148,-790.83,0.00019999,2]
[360022510,1746484242157,-790.83,0.00019999,2]
[360022511,1746484242166,-790.83,0.00019999,2]
[360022512,1746484242177,-790.83,0.00019999,2]
[360022513,1746484242186,-790.83,0.00019999,2]
[360022514,1746484242195,-150.0,0.00019999,2]
[360022515,1746484242207,-790.83,0.00019999,2]
[360022516,1746484242216,-790.83,0.00019999,2]
[360022517,1746484242226,-790.83,0.00019999,2]
[360022518,1746484242235,-790.83,0.00019999,2]
[360022519,1746484242245,-500.0,0.00019999,2]
[360022520,1746484242255,-790.83,0.00019999,2]
[360022521,1746484242265,-790.83,0.00019999,2]
[360022522,1746484242275,-790.83,0.00019999,2]
[360022523,1746484242286,-790.83,0.00019999,2]
[360022524,1746484242296,-790.9,0.00019999,2]
[360022525,1746484242305,-150.0,0.00019999,2]
[360022526,1746484242314,-150.0,0.00019999,2]
[360022527,1746484242323,-150.0,0.00019999,2]
[360022528,1746484242332,-513.0,0.0002,2]
[360022529,1746484242342,-475181.78129204,0.0002,2]
[360022530,1746484242351,-240768.11417674,0.0002,2]
[360022535,1746484242606,-15323.84874768,0.0002,2]
[360022536,1746484242616,-3950.0,0.0002,2]
[360022537,1746484242626,-1252.68944603,0.0002,2]
[360022538,1746484242635,-11851.56177779,0.0002,2]
[360022539,1746484242645,-1010.76499322,0.0002,2]
[360022540,1746484242654,-1764.87313881,0.0002,2]
[360022541,1746484242663,-89009.17187783,0.0002,2]
[360022542,1746484242673,-364456.42496592,0.0002,2]
[360022543,1746484242683,-169666.78920275,0.0002,2]
[360022544,1746484242693,-151455.79186995,0.0002,2]
[360022545,1746484242702,-363737.74099964,0.0002,2]
[360022546,1746484242714,-1253.84183608,0.0002,2]
[360022547,1746484242725,-1106.30285375,0.0002,2]
[360022548,1746484242737,-475.47215707,0.0002,2]
[360022549,1746484242748,-873.04153788,0.0002,2]
[360022550,1746484242789,-1737.09782389,0.0002,2]
[360022551,1746484242806,-50956.53433579,0.0002,2]
[360022552,1746484242890,-2004.69697155,0.0002,2]
[360022561,1746484245458,-1273.0,0.00019986,2]
[360022562,1746484245470,-886.393758,0.00019986,2]
[360022563,1746484245480,-2473.33,0.00019998,2]
[360022564,1746484245490,-2473.33,0.00019998,2]
[360022565,1746484245499,-2416.846242,0.00019999,2]
[360022566,1746484245539,-56.483758,0.00019999,2]
[360022567,1746484245550,-532.264242,0.00019999,2]
[360022568,1746484245562,-1941.065758,0.00019999,2]
[360022569,1746484245572,-2473.33,0.00019999,2]
[360022570,1746484245583,-69.206242,0.00019999,2]
[360022571,1746484245622,-2404.123758,0.00019999,2]
[360022572,1746484245631,-17106.64207352,0.0002,2]
[360022573,1746484245704,-782.5008687,0.0002,2]
[360022574,1746484245790,-1890.1,0.00019999,2]
[360022575,1746484245802,-583.23,0.00019999,2]
[360022576,1746484245812,-74.04927126,0.0002,2]
[360022577,1746484245823,-630.820596,0.0002,2]
[360022578,1746484245837,-372306.93985465,0.0002,2]
[360022579,1746484245849,-4248.39147517,0.0002,2]
[360022580,1746484245860,-29428.86218682,0.0002,2]
[360022581,1746484245890,-4289.3346961,0.0002,2]
[360022582,1746484249717,1047.0,0.000194,2]
[360022583,1746484264554,200.0,0.00019424,2]
[360022584,1746484292244,5359.13023764,0.00019287,2]
[360022585,1746484292267,10000.0,0.00019287,2]
[360022586,1746484292290,8540.86976236,0.00019287,2]
[360022587,1746484295774,222.447414,0.00018796,2]
[360022588,1746484296072,222.447414,0.00019031,2]
[360022589,1746484296360,222.447414,0.00019266,2]
[360022590,1746484296653,222.447414,0.00019501,2]
[360022591,1746484327795,-374.33208663,0.00019502,2]
[360022592,1746484333437,-190.04801037,0.00019502,2]
[360022593,1746484338163,-231.74989668,0.00019502,2]
[360022594,1746484344368,-158.87171738,0.00019502,2]
[360022595,1746484347558,-200.0,0.00019502,2]
[360022596,1746484351063,-168.32156732,0.00019502,2]
[360022597,1746484356393,-573.5677,0.00019502,2]
[360022598,1746484361504,-295.72,0.00019502,2]
[360022599,1746484365609,-283.38891236,0.00019502,2]
[360022600,1746484368799,-247.32338764,0.00019502,2]
[360022601,1746484373273,-200.0,0.00019502,2]
[360022602,1746484375946,-34.27194462,0.00019502,2]
[360022603,1746484405785,-213.99768461,0.00019502,2]
[360022604,1746484410918,-166.69,0.00019502,2]
[360022605,1746484413627,-166.66,0.00019502,2]
[360022606,1746484417617,-327.2332436,0.00019502,2]
[360022607,1746484425943,-719.79201788,0.00019502,2]
[360022608,1746484430112,-370.00715091,0.00019502,2]
[360022609,1746484471058,300.0,0.00030137,120]
[360022610,1746484475802,569.34058164,0.00018989,2]
[360022611,1746484475823,3684.07941836,0.00018989,2]
[360022612,1746484479677,150.49171259,0.00019484,2]
[360022613,1746484479699,964.38463741,0.00019484,2]
[360022614,1746484492184,150.491713,0.00019484,2]
[360022615,1746484504584,3237.68,0.00019,2]
[360022616,1746484506228,1963.36423123,0.00019,2]
[360022617,1746484506249,1274.31576877,0.00019,2]
[360022618,1746484507993,3237.68,0.00019,2]
[360022619,1746484511736,3237.68,0.00019,2]
[360022620,1746484513413,2250.32423123,0.00019,2]
[360022621,1746484513433,987.35576877,0.00019,2]
[360022622,1746484530127,156.55,0.00018946,2]
[360022625,1746484561016,2471.98,0.00018946,2]
[360022626,1746484620570,1000.0,0.0003,30]
[360022628,1746484747029,307.73,0.00018906,2]
[360022629,1746484802845,1546.11,0.00018885,2]
[360022630,1746484809422,974.41,0.00018887,2]
[360022633,1746484859681,156.87612079,0.00019499,2]
[360022634,1746484890580,1000.0,0.00018828,2]
[360022635,1746484919413,1363.97955928,0.0003,30]
[360022636,1746484955907,269.18136954,0.000195,2]
[360022637,1746484986842,2028.72,0.0003,60]
[360022638,1746484999695,555.83,0.0003,30]
[360022639,1746485033377,555.83,0.0003,30]
[360022641,1746485159994,773.61,0.0001686,2]
[360022642,1746485160966,267.28634013,0.00019124,2]
[360022643,1746485160990,506.32365987,0.00019124,2]
[360022644,1746485186817,267.28634,0.00019482,2]
[360022658,1746485292458,250.0,0.00018765,2]
[360022659,1746485329719,151.84,0.00018765,2]
[360022660,1746485329937,151.84,0.00018778,2]
[360022661,1746485330167,28.90674103,0.00018791,2]
[360022662,1746485330189,122.93325897,0.00018791,2]
[360022663,1746485330391,151.84,0.00018805,2]
[360022664,1746485330611,151.84,0.00018818,2]
[360022665,1746485330839,151.84,0.00018832,2]
[360022666,1746485331031,151.84,0.00018845,2]
[360022667,1746485331232,151.84,0.00018858,2]
[360022669,1746485413566,200.0,0.00018759,2]
[360022681,1746485431701,-200.0,0.00019582,2]
[360022682,1746485431711,-166.52,0.00019582,2]
[360022683,1746485431721,-200.0,0.00019586,2]
[360022684,1746485431730,-73.68475102,0.00019588,2]
[360022685,1746485431741,-133.71524898,0.00019588,2]
[360022686,1746485431750,-1049.58637657,0.0001959,2]
[360022687,1746485431759,-850.0,0.00019599,2]
[360022688,1746485431769,-1200.0,0.00019599,2]
[360022689,1746485431778,-300.0,0.00019599,2]
[360022690,1746485431787,-105.93609007,0.00019599,2]
[360022691,1746485431798,-194.06390993,0.00019599,2]
[360022692,1746485431807,-805.93609007,0.000196,2]
[360022693,1746485431819,-241.06390993,0.000196,2]
[360022694,1746485431828,-74528.43071627,0.000196,2]
[360022695,1746485431837,-200.0,0.000196,2]
[360022696,1746485431846,-1155.60131846,0.00019685,2]
[360022697,1746485431855,-405.19045512,0.00019688,2]
[360022698,1746485431865,-160.52141677,0.00019688,2]
[360022699,1746485431874,-1099.70427217,0.00019699,2]
[360022700,1746485431883,-1155.60131846,0.00019709,2]
[360022701,1746485431893,-160.52141674,0.00019712,2]
[360022702,1746485431902,-1099.70427217,0.00019721,2]
[360022703,1746485431915,-1155.60131846,0.00019733,2]
[360022704,1746485431925,-160.52141674,0.00019735,2]
[360022705,1746485431934,-222.447414,0.00019736,2]
[360022706,1746485431944,-405.19045511,0.00019737,2]
[360022707,1746485431955,-1099.70427217,0.00019744,2]
[360022708,1746485431965,-1155.60131846,0.00019757,2]
[360022710,1746485431975,-160.52141674,0.00019759,2]
[360022712,1746485431985,-1099.70427217,0.00019766,2]
[360022713,1746485431994,-500.0,0.00019773,2]
[360022714,1746485432004,-500.0,0.00019773,2]
[360022715,1746485432014,-154.67147585,0.00019773,2]
[360022716,1746485432023,-506.72470226,0.00019773,2]
[360022717,1746485432033,-500.0,0.00019773,2]
[360022718,1746485432042,-215.37862337,0.00019773,2]
[360022719,1746485432052,-500.0,0.00019773,2]
[360022720,1746485432061,-500.0,0.00019773,2]
[360022721,1746485432071,-502.44539025,0.00019773,2]
[360022722,1746485432081,-500.0,0.00019773,2]
[360022723,1746485432091,-157.36544465,0.00019773,2]
[360022724,1746485432100,-506.18131018,0.00019773,2]
[360022725,1746485432110,-207.90786222,0.00019773,2]
[360022726,1746485432119,-495.25608949,0.00019773,2]
[360022727,1746485432129,-500.0,0.00019773,2]
[360022728,1746485432138,-500.0,0.00019773,2]
[360022729,1746485432148,-500.0,0.00019773,2]
[360022730,1746485432157,-156.41171285,0.00019773,2]
[360022731,1746485432167,-163.91535588,0.00019773,2]
[360022732,1746485432177,-506.23778375,0.00019773,2]
[360022733,1746485432186,-161.1858119,0.00019773,2]
[360022734,1746485432195,-500.0,0.00019773,2]
[360022735,1746485432205,-500.0,0.00019773,2]
[360022736,1746485432215,-553.0106179,0.00019773,2]
[360022737,1746485432224,-177.75275273,0.00019773,2]
[360022738,1746485432234,-151.0,0.00019774,2]
[360022739,1746485432243,-151.0,0.00019774,2]
[360022740,1746485432253,-668.65185757,0.00019774,2]
[360022741,1746485432262,-684.17,0.00019775,2]
[360022742,1746485432272,-1682.9706648,0.00019776,2]
[360022743,1746485432282,-684.17,0.00019776,2]
[360022744,1746485432291,-684.17,0.00019776,2]
[360022745,1746485432301,-684.17,0.00019776,2]
[360022746,1746485432310,-684.17,0.00019776,2]
[360022747,1746485432319,-684.17,0.00019776,2]
[360022749,1746485432328,-684.17,0.00019776,2]
[360022751,1746485432338,-684.17,0.00019776,2]
[360022753,1746485432347,-684.17,0.00019776,2]
[360022755,1746485432356,-684.17,0.00019776,2]
[360022756,1746485432366,-1155.60131846,0.00019781,2]
[360022757,1746485432375,-160.52141674,0.00019782,2]
[360022758,1746485432385,-396.777921,0.00019785,2]
[360022759,1746485432394,-412.095677,0.00019785,2]
[360022760,1746485432404,-185.266251,0.00019785,2]
[360022761,1746485432565,-450.0,0.00019785,2]
[360022762,1746485432575,-240.69708843,0.00019785,2]
[360022763,1746485432584,-450.0,0.00019785,2]
[360022764,1746485432594,-450.0,0.00019785,2]
[360022765,1746485432603,-450.0,0.00019785,2]
[360022766,1746485432612,-257.67,0.00019785,2]
[360022767,1746485432622,-450.0,0.00019785,2]
[360022768,1746485432631,-599.45137858,0.00019785,2]
[360022769,1746485432641,-450.0,0.00019785,2]
[360022770,1746485432650,-450.0,0.00019785,2]
[360022771,1746485432659,-173.27,0.00019785,2]
[360022772,1746485432668,-450.0,0.00019785,2]
[360022773,1746485432677,-450.0,0.00019785,2]
[360022774,1746485432687,-215.86,0.00019785,2]
[360022775,1746485432696,-450.0,0.00019785,2]
[360022776,1746485432705,-450.0,0.00019785,2]
[360022777,1746485432715,-450.0,0.00019785,2]
[360022778,1746485432724,-450.0,0.00019785,2]
[360022779,1746485432734,-450.0,0.00019785,2]
[360022780,1746485432743,-308.84,0.00019785,2]
[360022781,1746485432753,-500.0,0.00019785,2]
[360022782,1746485432762,-500.0,0.00019785,2]
[360022783,1746485432771,-450.0,0.00019785,2]
[360022784,1746485432781,-450.0,0.00019785,2]
[360022785,1746485432791,-450.0,0.00019785,2]
[360022786,1746485432800,-450.0,0.00019785,2]
[360022787,1746485432809,-450.0,0.00019785,2]
[360022788,1746485432819,-450.0,0.00019785,2]
[360022789,1746485432828,-292.71141559,0.00019785,2]
[360022790,1746485432838,-450.0,0.00019785,2]
[360022791,1746485432847,-450.0,0.00019785,2]
[360022792,1746485432857,-450.0,0.00019785,2]
[360022793,1746485432866,-450.0,0.00019785,2]
[360022794,1746485432875,-450.0,0.00019785,2]
[360022795,1746485432884,-450.0,0.00019785,2]
[360022796,1746485432894,-450.0,0.00019785,2]
[360022797,1746485432903,-450.0,0.00019785,2]
[360022798,1746485432916,-182.35,0.00019785,2]
[360022799,1746485432926,-450.0,0.00019785,2]
[360022800,1746485432936,-450.0,0.00019785,2]
[360022801,1746485432946,-450.0,0.00019785,2]
[360022802,1746485432957,-450.0,0.00019785,2]
[360022803,1746485432967,-450.0,0.00019785,2]
[360022804,1746485432977,-450.0,0.00019785,2]
[360022805,1746485432988,-450.0,0.00019785,2]
[360022806,1746485432998,-450.0,0.00019785,2]
[360022807,1746485433007,-450.0,0.00019785,2]
[360022808,1746485433017,-500.0,0.00019785,2]
[360022809,1746485433026,-500.0,0.00019785,2]
[360022810,1746485433036,-503.31962313,0.00019785,2]
[360022811,1746485433045,-450.0,0.00019785,2]
[360022812,1746485433055,-450.0,0.00019785,2]
[360022813,1746485433064,-450.0,0.00019785,2]
[360022814,1746485433075,-450.0,0.00019785,2]
[360022815,1746485433084,-450.0,0.00019785,2]
[360022816,1746485433094,-450.0,0.00019785,2]
[360022817,1746485433103,-450.0,0.00019785,2]
[360022818,1746485433113,-450.0,0.00019785,2]
[360022819,1746485433122,-466.69,0.00019785,2]
[360022820,1746485433131,-450.0,0.00019785,2]
[360022821,1746485433141,-450.0,0.00019785,2]
[360022822,1746485433150,-450.0,0.00019785,2]
[360022823,1746485433159,-214.21,0.00019785,2]
[360022824,1746485433169,-450.0,0.00019785,2]
[360022825,1746485433178,-450.0,0.00019785,2]
[360022826,1746485433187,-450.0,0.00019785,2]
[360022827,1746485433196,-450.0,0.00019785,2]
[360022828,1746485433205,-450.0,0.00019785,2]
[360022829,1746485433214,-450.0,0.00019785,2]
[360022830,1746485433223,-450.0,0.00019785,2]
[360022831,1746485433232,-450.0,0.00019785,2]
[360022832,1746485433241,-450.0,0.00019785,2]
[360022833,1746485433250,-450.0,0.00019785,2]
[360022834,1746485433259,-450.0,0.00019785,2]
[360022835,1746485433268,-450.0,0.00019785,2]
[360022836,1746485433278,-326.94,0.00019785,2]
[360022837,1746485433287,-450.0,0.00019785,2]
[360022838,1746485433296,-546.94,0.00019785,2]
[360022839,1746485433306,-450.0,0.00019785,2]
[360022840,1746485433316,-450.0,0.00019785,2]
[360022841,1746485433325,-450.0,0.00019785,2]
[360022842,1746485433334,-450.0,0.00019785,2]
[360022843,1746485433344,-450.0,0.00019785,2]
[360022844,1746485433353,-450.0,0.00019785,2]
[360022845,1746485433363,-450.0,0.00019785,2]
[360022846,1746485433373,-450.0,0.00019785,2]
[360022847,1746485433382,-450.0,0.00019785,2]
[360022848,1746485433391,-450.0,0.00019785,2]
[360022849,1746485433400,-535.38,0.00019785,2]
[360022850,1746485433410,-450.0,0.00019785,2]
[360022851,1746485433420,-1447.6,0.00019785,2]
[360022852,1746485433430,-1447.6,0.00019785,2]
[360022853,1746485433440,-1447.6,0.00019785,2]
[360022854,1746485433451,-1447.6,0.00019785,2]
[360022855,1746485433461,-450.0,0.00019785,2]
[360022856,1746485433471,-450.0,0.00019785,2]
[360022857,1746485433481,-450.0,0.00019785,2]
[360022858,1746485433491,-450.0,0.00019785,2]
[360022859,1746485433501,-450.0,0.00019785,2]
[360022860,1746485433511,-587.28,0.00019785,2]
[360022861,1746485433521,-450.0,0.00019785,2]
[360022862,1746485433531,-450.0,0.00019785,2]
[360022863,1746485433540,-450.0,0.00019785,2]
[360022864,1746485433550,-450.0,0.00019785,2]
[360022865,1746485433559,-450.0,0.00019785,2]
[360022866,1746485433569,-450.0,0.00019785,2]
[360022867,1746485433579,-481.59,0.00019785,2]
[360022868,1746485433589,-450.0,0.00019785,2]
[360022869,1746485433599,-450.0,0.00019785,2]
[360022870,1746485433608,-450.0,0.00019785,2]
[360022871,1746485433618,-450.0,0.00019785,2]
[360022872,1746485433627,-450.0,0.00019785,2]
[360022873,1746485433637,-450.0,0.00019785,2]
[360022874,1746485433647,-450.0,0.00019785,2]
[360022875,1746485433657,-2000.0,0.00019785,2]
[360022876,1746485433667,-450.0,0.00019785,2]
[360022877,1746485433676,-450.0,0.00019785,2]
[360022878,1746485433687,-290.34711163,0.00019785,2]
[360022879,1746485433697,-450.0,0.00019785,2]
[360022880,1746485433706,-796.96,0.00019785,2]
[360022881,1746485433716,-796.96,0.00019785,2]
[360022882,1746485433726,-796.96,0.00019785,2]
[360022883,1746485433736,-796.96,0.00019785,2]
[360022884,1746485433746,-450.0,0.00019785,2]
[360022885,1746485433756,-450.0,0.00019785,2]
[360022886,1746485433766,-450.0,0.00019785,2]
[360022887,1746485433776,-450.0,0.00019785,2]
[360022888,1746485433785,-499.57,0.00019785,2]
[360022889,1746485433795,-450.0,0.00019785,2]
[360022890,1746485433804,-490.0,0.00019785,2]
[360022891,1746485433814,-968.31,0.00019785,2]
[360022892,1746485433823,-968.31,0.00019785,2]
[360022893,1746485433833,-968.31,0.00019785,2]
[360022894,1746485433842,-968.31,0.00019785,2]
[360022895,1746485433852,-450.0,0.00019785,2]
[360022896,1746485433862,-450.0,0.00019785,2]
[360022897,1746485433872,-450.0,0.00019785,2]
[360022898,1746485433882,-450.0,0.00019785,2]
[360022899,1746485433891,-535.53426083,0.00019785,2]
[360022900,1746485433901,-554.72597094,0.00019785,2]
[360022901,1746485433913,-450.0,0.00019785,2]
[360022902,1746485433923,-450.0,0.00019785,2]
[360022903,1746485433932,-450.0,0.00019785,2]
[360022904,1746485433943,-450.0,0.00019785,2]
[360022905,1746485433952,-473.783571,0.00019785,2]
[360022906,1746485433965,-450.0,0.00019785,2]
[360022907,1746485433975,-513.39340979,0.00019785,2]
[360022908,1746485433985,-500.0,0.00019785,2]
[360022909,1746485433994,-500.0,0.00019785,2]
[360022910,1746485434004,-500.0,0.00019785,2]
[360022911,1746485434014,-500.0,0.00019785,2]
[360022912,1746485434024,-500.0,0.00019785,2]
[360022913,1746485434034,-500.0,0.00019785,2]
[360022914,1746485434044,-239.62493417,0.00019785,2]
[360022915,1746485434054,-500.0,0.00019785,2]
[360022916,1746485434064,-248.47738932,0.00019785,2]
[360022917,1746485434074,-391.86244259,0.00019785,2]
[360022918,1746485434084,-450.0,0.00019785,2]
[360022919,1746485434093,-265.98096844,0.00019785,2]
[360022920,1746485434103,-195.70055124,0.00019785,2]
[360022921,1746485434113,-197.81897051,0.00019785,2]
[360022922,1746485434123,-260.55679229,0.00019785,2]
[360022923,1746485434133,-405.19045511,0.00019786,2]
[360022924,1746485434142,-665.2863,0.00019786,2]
[360022925,1746485434152,-1034621.2381,0.00019786,2]
[360022926,1746485434162,-1099.70427217,0.00019788,2]
[360022927,1746485434171,-1047.0,0.000198,2]
[360022928,1746485434181,-1155.60131846,0.00019804,2]
[360022929,1746485434190,-160.52141674,0.00019806,2]
[360022930,1746485434200,-1099.70427217,0.00019811,2]
[360022931,1746485434209,-1155.60131846,0.00019828,2]
[360022932,1746485434219,-160.52141674,0.00019829,2]
[360022933,1746485434229,-1099.70427217,0.00019833,2]
[360022934,1746485434239,-200.0,0.0001984,2]
[360022935,1746485434249,-1155.60131846,0.00019852,2]
[360022936,1746485434259,-160.52141674,0.00019853,2]
[360022937,1746485434268,-1099.70427217,0.00019855,2]
[360022938,1746485434278,-500.0,0.00019873,2]
[360022939,1746485434287,-500.0,0.00019873,2]
[360022940,1746485434297,-500.0,0.00019873,2]
[360022941,1746485434306,-503.14930803,0.00019873,2]
[360022942,1746485434316,-500.0,0.00019873,2]
[360022943,1746485434326,-500.0,0.00019873,2]
[360022944,1746485434336,-500.0,0.00019873,2]
[360022945,1746485434346,-500.0,0.00019873,2]
[360022946,1746485434356,-430.52902541,0.00019873,2]
[360022947,1746485434365,-500.0,0.00019873,2]
[360022948,1746485434375,-502.98408913,0.00019873,2]
[360022949,1746485434385,-500.0,0.00019873,2]
[360022950,1746485434395,-500.0,0.00019873,2]
[360022951,1746485434405,-500.0,0.00019873,2]
[360022952,1746485434415,-500.0,0.00019873,2]
[360022953,1746485434424,-500.0,0.00019873,2]
[360022954,1746485434434,-500.0,0.00019873,2]
[360022955,1746485434444,-1155.60131846,0.00019876,2]
[360022956,1746485434454,-160.52141674,0.00019876,2]
[360022957,1746485434463,-1099.70427217,0.00019878,2]
[360022958,1746485434473,-450.0,0.00019882,2]
[360022959,1746485434483,-1447.6,0.00019882,2]
[360022960,1746485434492,-450.0,0.00019882,2]
[360022961,1746485434502,-968.31,0.00019882,2]
[360022962,1746485434511,-12500.0,0.00019882,2]
[360022963,1746485434521,-450.0,0.00019885,2]
[360022964,1746485434531,-450.0,0.00019885,2]
[360022965,1746485434540,-450.0,0.00019885,2]
[360022966,1746485434550,-450.0,0.00019885,2]
[360022967,1746485434560,-179.76,0.00019885,2]
[360022968,1746485434569,-796.96,0.00019885,2]
[360022969,1746485434578,-450.0,0.00019885,2]
[360022970,1746485434588,-938.0889,0.00019886,2]
[360022971,1746485434598,-4341.6109,0.00019886,2]
[360022972,1746485434607,-41700.0,0.00019886,2]
[360022973,1746485434616,-184.5909,0.00019886,2]
[360022974,1746485434625,-1488.1735,0.00019899,2]
[360022975,1746485434634,-1518.9421,0.00019899,2]
[360022976,1746485434644,-5301.0195,0.00019899,2]
[360022977,1746485434653,-1293.6604,0.00019899,2]
[360022978,1746485434662,-10952.806,0.00019899,2]
[360022979,1746485434671,-450.0,0.00019899,2]
[360022980,1746485434680,-521.31,0.00019899,2]
[360022981,1746485434690,-450.0,0.00019899,2]
[360022982,1746485434699,-343.13459588,0.00019899,2]
[360022983,1746485434708,-450.0,0.00019899,2]
[360022984,1746485434717,-182.65158867,0.00019899,2]
[360022985,1746485434727,-192.04651815,0.00019899,2]
[360022986,1746485434736,-452.67093853,0.00019899,2]
[360022987,1746485434746,-450.0,0.00019899,2]
[360022988,1746485434755,-450.0,0.00019899,2]
[360022989,1746485434764,-450.0,0.00019899,2]
[360022990,1746485434774,-450.0,0.00019899,2]
[360022991,1746485434783,-450.0,0.00019899,2]
[360022992,1746485434793,-470.0,0.00019899,2]
[360022993,1746485434802,-450.0,0.00019899,2]
[360022994,1746485434812,-450.0,0.00019899,2]
[360022995,1746485434821,-450.0,0.00019899,2]
[360022996,1746485434831,-528.13725118,0.00019899,2]
[360022997,1746485434840,-450.0,0.00019899,2]
[360022998,1746485434850,-450.0,0.00019899,2]
[360022999,1746485434860,-392.34791614,0.00019899,2]
[360023000,1746485434869,-450.0,0.00019899,2]
[360023001,1746485434879,-464.71,0.00019899,2]
[360023002,1746485434889,-450.0,0.00019899,2]
[360023003,1746485434898,-450.0,0.00019899,2]
[360023004,1746485434908,-450.0,0.00019899,2]
[360023005,1746485434920,-450.0,0.00019899,2]
[360023006,1746485434930,-450.0,0.00019899,2]
[360023007,1746485434939,-450.0,0.00019899,2]
[360023008,1746485434948,-436.7677651,0.00019899,2]
[360023009,1746485434959,-450.0,0.00019899,2]
[360023010,1746485434968,-450.0,0.00019899,2]
[360023011,1746485434977,-450.0,0.00019899,2]
[360023012,1746485434987,-450.0,0.00019899,2]
[360023013,1746485434997,-502.93664547,0.00019899,2]
[360023014,1746485435007,-450.0,0.00019899,2]
[360023015,1746485435016,-450.0,0.00019899,2]
[360023016,1746485435025,-450.0,0.00019899,2]
[360023017,1746485435034,-450.0,0.00019899,2]
[360023018,1746485435044,-450.0,0.00019899,2]
[360023019,1746485435053,-450.0,0.00019899,2]
[360023020,1746485435063,-450.0,0.00019899,2]
[360023021,1746485435072,-450.0,0.00019899,2]
[360023022,1746485435081,-450.0,0.00019899,2]
[360023023,1746485435090,-450.0,0.00019899,2]
[360023024,1746485435100,-450.0,0.00019899,2]
[360023025,1746485435109,-450.0,0.00019899,2]
[360023026,1746485435118,-450.0,0.00019899,2]
[360023027,1746485435128,-450.0,0.00019899,2]
[360023028,1746485435137,-487.02613575,0.00019899,2]
[360023029,1746485435146,-450.0,0.00019899,2]
[360023030,1746485435156,-450.0,0.00019899,2]
[360023031,1746485435165,-500.0,0.00019899,2]
[360023032,1746485435174,-450.0,0.00019899,2]
[360023033,1746485435184,-450.0,0.00019899,2]
[360023034,1746485435193,-450.0,0.00019899,2]
[360023035,1746485435202,-16374.66,0.00019899,2]
[360023036,1746485435212,-450.0,0.00019899,2]
[360023037,1746485435221,-450.0,0.00019899,2]
[360023038,1746485435231,-450.0,0.00019899,2]
[360023039,1746485435240,-450.0,0.00019899,2]
[360023040,1746485435250,-450.0,0.00019899,2]
[360023041,1746485435259,-508.48364399,0.00019899,2]
[360023042,1746485435268,-450.0,0.00019899,2]
[360023043,1746485435278,-450.0,0.00019899,2]
[360023044,1746485435287,-450.0,0.00019899,2]
[360023045,1746485435297,-450.0,0.00019899,2]
[360023046,1746485435306,-450.0,0.00019899,2]
[360023047,1746485435315,-450.0,0.00019899,2]
[360023048,1746485435325,-450.0,0.00019899,2]
[360023049,1746485435335,-450.0,0.00019899,2]
[360023050,1746485435466,-450.0,0.00019899,2]